[Event "7th Sharjah Challengers 2024"]
[Site "Sharjah"]
[Date "2024.05.22"]
[Round "9.1"]
[White "Divya Deshmukh"]
[Black "Garifullina, Leya"]
[Result "1/2-1/2"]
[ECO "A07"]
[WhiteElo "2443"]
[BlackElo "2431"]
[Annotator "TA"]
[PlyCount "99"]
[EventDate "2024.05.13"]
[EventType "swiss"]
[EventCountry "UAE"]
[SourceTitle "playchess.com"]
[Source "ChessBase"]
[SourceQuality "1"]
[TimeControl "5400+30"]

{[%evp 9,99,30,31,22,15,15,20,-8,0,0,0,0,11,9,30,29,20,15,24,23,16,14,101,112,99,60,64,37,46,58,55,41,87,62,108,100,109,98,110,108,109,105,99,95,83,87,91,72,72,72,58,76,69,80,69,69,70,71,70,70,60,14,25,9,14,8,8,17,12,0,60,51,78,18,39,27,20,11,72,0,78,57,279,8,33,36,28,0,0,0,31,0]} 1. Nf3 {[%emt 0:00:08]} d5 {[%emt 0:00:23]} 2. g3 {[%emt 0:00:07]} Bg4 {[%emt 0:00:08]} 3. Bg2 {[%emt 0:00:04]} e6 {[%emt 0:00:08]} 4. h3 {[%emt 0:00:04]} Bh5 {[%emt 0:00:05]} 5. O-O {[%emt 0:01:17]} Nf6 {[%emt 0:00:06] [#]} 6. c4 $1 {[%emt 0:00:15]} c6 {[%emt 0:00:08]} 7. d4 {[%emt 0:00:09]} Nbd7 {[%emt 0:00:44]} 8. Ne5 {[%emt 0:00:11] The position is equal.} Nxe5 {[%emt 0:00:45]} 9. dxe5 {[%emt 0:00:09]} Nd7 {[%emt 0:00:05]} 10. cxd5 {[%emt 0:00:11]} cxd5 {[%emt 0:00:07]} 11. Nc3 {[%emt 0:00:27]} Bc5 {[%emt 0:01:17]} 12. g4 {[%emt 0:02:42]} Bg6 {[%emt 0:00:05]} 13. Bf4 {[%emt 0:00:07]} O-O {[%emt 0:01:58]} (13... h5 {seems wilder.} 14. e4 hxg4 15. hxg4 Qh4) 14. e4 {[%emt 0:00:22]} d4 {[%emt 0:01:15]} 15. Na4 {[%emt 0:00:16]} b5 {[%emt 0:04:28]} (15... b6 $11) 16. Nxc5 $16 {[%emt 0:01:00]} Nxc5 {[%emt 0:00:05]} 17. Re1 {[%emt 0:02:57]} Rc8 {[%emt 0:04:17]} 18. Qd2 {[%emt 0:07:28]} d3 {[%emt 0:05:24]} 19. Rad1 {[%emt 0:17:30]} a5 {[%emt 0:07:52]} 20. Bg5 {[%emt 0:11:07]} Qb6 {[%emt 0:03:30]} (20... Qd4 $14 {might be stronger.}) 21. Qe3 {[%emt 0:07:01]} Qc7 {[%emt 0:18:02]} (21... h6 $14 {feels stronger.} 22. Be7 Rfe8) 22. f4 {[%emt 0:03:42]} h6 {[%emt 0:00:17]} 23. Bh4 {[%emt 0:00:56]} Na4 {[%emt 0:04:45]} 24. Rd2 {[%emt 0:05:42]} Qc5 {[%emt 0:01:02]} 25. Qxc5 {[%emt 0:02:04]} Nxc5 {[%emt 0:00:05]} 26. Be7 {[%emt 0:14:13]} Rfe8 {[%emt 0:00:05]} 27. Bxc5 {[%emt 0:01:34]} Rxc5 {[%emt 0:00:05]} 28. Rxd3 {[%emt 0:03:16]} Bh7 {[%emt 0:00:07]} 29. Rc3 {[%emt 0:01:29]} Rxc3 {[%emt 0:01:18]} 30. bxc3 {[%emt 0:00:01][%mdl 4096] Endgame. KRB-KRB} g5 {[%emt 0:00:06]} 31. f5 {[%emt 0:02:19]} Rc8 {[%emt 0:00:47]} 32. Rb1 {[%emt 0:00:40]} Rc5 {[%emt 0:01:13]} 33. Bf1 {[%emt 0:01:47]} Rxe5 {[%emt 0:02:21]} 34. Rxb5 {[%emt 0:00:43]} Rxe4 {[%emt 0:00:04]} 35. Rb8+ {[%emt 0:03:42]} Kg7 {[%emt 0:00:23] [#]} 36. f6+ {[%emt 0:00:07]} Kxf6 {[%emt 0:00:07] Hoping for ...Ra4.} 37. Bd3 {[%emt 0:00:02]} Re3 {[%emt 0:00:21][%csl LRd3,LRh3]} 38. Bxh7 {[%emt 0:00:10]} Rxh3 $11 {[%emt 0:00:21][%cal Oh3h4] KRB-KR} 39. c4 {[%emt 0:06:28]} Rc3 {[%emt 0:00:22]} (39... Rh4 $11) 40. Rc8 $1 $14 {[%emt 0:01:45]} Ke5 {[%emt 0:00:09]} (40... Rg3+ $2 41. Kf2 Rxg4 42. Bd3 $16) 41. Bg8 {[%emt 0:00:21]} ({Better is} 41. Kf2 $1 $16) 41... f5 {[%emt 0:00:45]} 42. Re8 {[%emt 0:04:03]} Kf4 {[%emt 0:00:47]} 43. Rxe6 {[%emt 0:00:22] aiming for gxf5.} Kxg4 {[%emt 0:00:20]} (43... Kf3 $11) 44. Re2 {[%emt 0:01:52]} (44. Rxh6 $16 {Kf2 would now be deadly.} Kg3 45. Kf1) 44... f4 {[%emt 0:01:28] [#]} (44... Kg3 $11 45. Rg2+ Kf4) 45. Kf2 $1 $16 {[%emt 0:00:47] And now Be6+ would win.} Kh3 $2 {[%emt 0:01:12] [#]} (45... Kf5 $1 $14) 46. Re6 $2 {[%emt 0:01:11]} (46. Re1 $1 $18 {[%cal Re1h1] White wants to mate with Rh1+.} Rc2+ 47. Kf3 Rc3+ 48. Ke4) 46... Rc2+ {[%emt 0:00:27]} 47. Kf3 {[%emt 0:00:09][%cal Re6h6]} ({Don't play} 47. Re2 Rc1 $16 (47... Rxe2+ $2 48. Kxe2 g4 49. c5 $18)) 47... Rc3+ {[%emt 0:00:09]} 48. Kf2 {[%emt 0:00:02]} Rc2+ {[%emt 0:00:07]} 49. Kf3 {[%emt 0:00:04][%cal Re6h6]} ({Don't take} 49. Re2 $6 Rc1 $16 (49... Rxe2+ $2 50. Kxe2 g4 51. Kf1 $18)) 49... Rc3+ {[%emt 0:00:02]} 50. Ke4 {[%emt 0:02:27] Weighted Error Value: White=0.21 (precise) /Black=0.24 (precise) .  Loses game:     	---       	Black=1      Missed win:     	White=1     	---        Mistake:       	White=2     	Black=6      Inaccurate:     	White=5     	Black=1      OK:         	White=17    	Black=19     Best:        	White=3     	Black=5      Strong:       	White=2     	---} 1/2-1/2

[Event "7th Sharjah Challengers 2024"]
[Site "Sharjah"]
[Date "2024.05.22"]
[Round "9.2"]
[White "Lashkin, Jegor"]
[Black "Burmakin, Vladimir"]
[Result "1/2-1/2"]
[ECO "D94"]
[WhiteElo "2449"]
[BlackElo "2483"]
[Annotator "TA"]
[PlyCount "63"]
[EventDate "2024.05.13"]
[EventType "swiss"]
[EventCountry "UAE"]
[SourceTitle "playchess.com"]
[Source "ChessBase"]
[SourceQuality "1"]
[TimeControl "5400+30"]

{[%evp 18,63,34,45,57,45,47,45,47,50,54,41,52,41,66,31,67,32,47,37,55,14,20,10,22,29,24,22,47,12,14,8,37,26,45,37,56,56,56,0,0,0,0,0,0,0,0,0]} 1. d4 {[%emt 0:00:04]} d5 {[%emt 0:00:03]} 2. c4 {[%emt 0:00:07]} c6 {[%emt 0:00:05]} 3. Nc3 {[%emt 0:00:04]} Nf6 {[%emt 0:00:08]} 4. e3 {[%emt 0:00:03]} g6 {[%emt 0:00:29]} 5. Nf3 {[%emt 0:00:07]} Bg7 {[%emt 0:00:05]} 6. Be2 {[%emt 0:00:11]} O-O {[%emt 0:00:11]} 7. O-O {[%emt 0:00:02]} Bg4 {[%emt 0:02:50]} 8. cxd5 {[%emt 0:05:22]} Nxd5 {[%emt 0:06:37]} 9. h3 {[%emt 0:08:19]} Bxf3 {[%emt 0:00:15]} 10. Bxf3 {[%emt 0:00:10]} e6 {[%emt 0:00:07][%cal Be7e6,Be6e5][%mdl 32]} 11. e4 {[%emt 0:09:00]} Nxc3 {[%emt 0:00:53]} 12. bxc3 {[%emt 0:00:02]} e5 {[%emt 0:00:06] White is slightly better.} 13. Be3 {[%emt 0:06:04]} Nd7 {[%emt 0:04:17][%cal Bb8d7,Bd7e5,Be5c6,Bc6d8,Bd8e6,Be6f4][%mdl 32]} 14. Rb1 {[%emt 0:05:55]} b6 {[%emt 0:05:04]} 15. Qb3 {[%emt 0:06:48]} Qc7 {[%emt 0:01:42]} 16. Rbd1 {[%emt 0:07:46]} c5 {[%emt 0:12:26]} 17. dxe5 {[%emt 0:07:54] White is more active.} Nxe5 {[%emt 0:00:31]} 18. Be2 {[%emt 0:00:15]} Rad8 {[%emt 0:00:15]} 19. Rxd8 {[%emt 0:07:32]} Rxd8 {[%emt 0:03:07]} 20. Rd1 {[%emt 0:00:09]} Nc6 {[%emt 0:13:07]} 21. Rxd8+ {[%emt 0:02:05]} Nxd8 {[%emt 0:00:36]} 22. Bd2 {[%emt 0:05:34]} Qd6 {[%emt 0:05:23]} 23. Qc2 {[%emt 0:00:50]} Ne6 {[%emt 0:08:57]} 24. Qd3 {[%emt 0:09:51]} Qc7 {[%emt 0:08:13]} 25. Qd5 {[%emt 0:08:35]} h5 {[%emt 0:01:51]} 26. h4 {[%emt 0:05:09]} Nf4 {[%emt 0:08:49]} 27. Qa8+ {[%emt 0:00:08]} Kh7 {[%emt 0:00:06]} 28. Bf1 {[%emt 0:00:43]} ({White should try} 28. Bc4 $14) 28... Qd6 $1 $11 {[%emt 0:03:08] The position is equal.} 29. Be3 {[%emt 0:00:15]} Bxc3 {[%emt 0:00:35]} 30. Qxa7 {[%emt 0:00:12]} Kg7 {[%emt 0:00:28]} 31. Bc4 {[%emt 0:02:01]} (31. g3 $5 Ne6 $8 32. Bc4 $11) 31... Ne6 {[%emt 0:15:36]} 32. Qb7 {[%emt 0:05:13] Weighted Error Value: White=0.12 (very precise) /Black=0.11 (very precise) .  Mistake:       	White=1     	---        Inaccurate:     	White=4     	Black=2      OK:         	White=10    	Black=6      Best:        	White=1     	Black=1      Strong:       	---       	Black=1} 1/2-1/2

[Event "7th Sharjah Challengers 2024"]
[Site "Sharjah"]
[Date "2024.05.22"]
[Round "9.3"]
[White "Movahed, Sina"]
[Black "Nitish Belurkar"]
[Result "1-0"]
[ECO "B45"]
[WhiteElo "2464"]
[BlackElo "2451"]
[Annotator "TA"]
[PlyCount "77"]
[EventDate "2024.05.13"]
[EventType "swiss"]
[EventCountry "UAE"]
[SourceTitle "playchess.com"]
[Source "ChessBase"]
[SourceQuality "1"]
[TimeControl "5400+30"]

{[%evp 15,77,2,37,0,0,0,12,0,10,15,10,0,16,0,0,-7,0,0,0,-40,0,0,0,0,0,-12,-26,-37,-18,-11,48,40,19,-53,-69,-85,-90,-102,0,0,0,0,0,0,0,0,104,90,585,587,29966,29966,29989,29990,29990,29991,29991,29992,29994,29995,29995,29996,29996,29997]} 1. e4 {[%emt 0:00:05]} c5 {[%emt 0:00:06]} 2. Nf3 {[%emt 0:00:05]} e6 {[%emt 0:00:03]} 3. d4 {[%emt 0:00:13]} cxd4 {[%emt 0:00:05]} 4. Nxd4 {[%emt 0:00:04]} Nf6 {[%emt 0:00:03][%cal Bg8f6,Bf6d5,Bd5b4,Bb4c6,Bc6d4][%mdl 32]} 5. Nc3 {[%emt 0:00:05]} Nc6 {[%emt 0:00:05]} 6. Nxc6 {[%emt 0:00:04]} bxc6 {[%emt 0:00:04][%cal Bb7c6,Bc6c5][%mdl 32]} 7. e5 {[%emt 0:00:04]} Nd5 {[%emt 0:00:03]} 8. Ne4 {[%emt 0:00:02]} Bb7 {[%emt 0:00:26]} 9. Nd6+ {[%emt 0:00:14]} Bxd6 {[%emt 0:00:08]} 10. exd6 {[%emt 0:00:02]} c5 {[%emt 0:00:15]} 11. c4 {[%emt 0:00:04] The position is equal.} Nb4 {[%emt 0:00:08]} 12. a3 {[%emt 0:00:58]} Nc6 {[%emt 0:00:05]} 13. Be3 {[%emt 0:00:02]} Qf6 {[%emt 0:00:09]} 14. Qd2 {[%emt 0:00:05]} Rb8 {[%emt 0:00:03]} 15. Bxc5 {[%emt 0:08:10]} Ba6 $1 {[%emt 0:00:42]} 16. Bb4 {[%emt 0:06:01]} ({Avoid the trap} 16. O-O-O $2 Na5 17. Bd4 Nb3+ 18. Kc2 Qg6+ 19. Bd3 Nxd4+ $19) 16... Nd4 $1 {[%emt 0:00:45]} 17. Qc3 {[%emt 0:06:56] Prevents Nb3} O-O {[%emt 0:00:08]} 18. O-O-O {[%emt 0:00:20]} e5 {[%emt 0:00:06][%cal Of8c8]} 19. Kb1 {[%emt 0:01:58]} Rfc8 {[%emt 0:12:20]} 20. Bd3 {[%emt 0:02:10]} Qxf2 {[%emt 0:02:38]} 21. Rdf1 {[%emt 0:05:55]} Qh4 {[%emt 0:00:10]} 22. Re1 {[%emt 0:01:09][%cal Bf1e1,Be1e3,Be3g3,Bg3g4,Bg4f4][%mdl 32]} Qf6 {[%emt 0:14:21]} (22... f6 $11) 23. Re3 $1 $14 {[%emt 0:08:03]} Qe6 {[%emt 0:12:23]} 24. Rc1 {[%emt 0:02:02]} ({White should play} 24. Rhe1 $11 Bxc4 25. Rxe5 Ba2+ 26. Ka1 Rxc3 27. Bxc3 (27. Rxe6 Bxe6 28. Bxc3 Nb3+ 29. Kb1 Nc5 $14)) 24... f6 $15 {[%emt 0:09:07]} 25. g4 {[%emt 0:08:46]} Qxg4 {[%emt 0:08:01]} 26. Rg3 {[%emt 0:01:20]} Qh4 {[%emt 0:12:09]} (26... Qh5 $17) 27. Rcg1 $36 {[%emt 0:02:27][%mdl 2048] White is pushing.} Ne6 {[%emt 0:01:15]} 28. Rg4 {[%emt 0:03:04]} Qh5 {[%emt 0:05:24][%cal Og7g6]} 29. Qe1 {[%emt 0:01:38] Threatens to win with Rh4.} Qf7 $1 {[%emt 0:01:02]} 30. Qf1 {[%emt 0:11:06][%cal Od3h7]} Kh8 {[%emt 0:06:47]} (30... g5 $1 $11) 31. Bxh7 $16 {[%emt 0:10:16] White is much more active. A strong pair of Bishops.} g5 $2 {[%emt 0:00:46][%mdl 8192] This move loses the game for Black.} (31... Kxh7 $16 32. Rh4+ Kg8) 32. Bd3 $18 {[%emt 0:03:18][%cal Og4g5] Rxg5! is the strong threat.} Nf4 {[%emt 0:00:47] [#]} 33. Rxf4 {[%emt 0:01:14][%mdl 512] White mates.} exf4 {[%emt 0:00:06]} (33... Bxc4 34. Qh3+) 34. Qh3+ {[%emt 0:00:05]} Kg8 {[%emt 0:00:03][%cal Bh8g8,Bg8f8,Bf8e8][%mdl 32] [#]} 35. Rxg5+ $3 {[%emt 0:00:22][%mdl 512]} fxg5 {[%emt 0:00:06]} 36. Bc3 {[%emt 0:00:03][%csl Gc3][%cal Rh3h8]} Qe6 {[%emt 0:02:57]} 37. Qh7+ {[%emt 0:00:12]} Kf8 {[%emt 0:00:04]} 38. Qg7+ {[%emt 0:00:04]} Ke8 {[%emt 0:00:04]} 39. Bg6+ {[%emt 0:00:04] Weighted Error Value: White=0.07 (flawless) /Black=0.46.  Loses game:     	---       	Black=1      Mistake:       	White=1     	Black=3      Inaccurate:     	White=1     	Black=2      OK:         	White=10    	Black=10     Best:        	White=3     	Black=3      Strong:       	White=1     	Black=3      Brilliant:      	White=1     	---} 1-0

[Event "7th Sharjah Challengers 2024"]
[Site "Sharjah"]
[Date "2024.05.22"]
[Round "9.4"]
[White "Delgado Ramirez, Neuris"]
[Black "Baranciuc, Alexandr"]
[Result "1/2-1/2"]
[ECO "A12"]
[WhiteElo "2489"]
[BlackElo "2333"]
[Annotator "TA"]
[PlyCount "129"]
[EventDate "2024.05.13"]
[EventType "swiss"]
[EventCountry "UAE"]
[SourceTitle "playchess.com"]
[Source "ChessBase"]
[SourceQuality "1"]
[TimeControl "5400+30"]

{[%evp 48,129,46,0,25,33,29,31,33,21,21,28,25,26,17,35,31,28,20,31,30,24,23,25,70,20,182,182,209,155,151,139,205,205,202,183,245,224,237,227,225,233,375,363,483,472,628,636,554,231,231,175,371,377,326,282,497,473,442,382,285,287,287,279,341,186,400,235,229,8,8,20,206,196,197,0,0,-735,-707,-1034,-978,-724,0,0]} 1. Nf3 {[%emt 0:00:08]} d5 {[%emt 0:00:08]} 2. g3 {[%emt 0:00:11]} Bf5 {[%emt 0:00:27]} 3. Bg2 {[%emt 0:00:53]} c6 {[%emt 0:00:13]} 4. O-O {[%emt 0:00:56]} Nf6 {[%emt 0:00:29]} 5. d3 {[%emt 0:00:59]} e6 {[%emt 0:01:14]} 6. b3 {[%emt 0:07:38]} Nbd7 {[%emt 0:00:50]} 7. Bb2 {[%emt 0:00:36]} h6 {[%emt 0:01:53]} 8. c4 {[%emt 0:01:49]} Be7 {[%emt 0:00:40]} 9. Nbd2 {[%emt 0:00:51]} O-O {[%emt 0:00:14]} 10. Rc1 {[%emt 1:21:29]} a5 {[%emt 0:01:09]} 11. a3 {[%emt 0:00:00]} Bh7 {[%emt 0:08:53]} 12. Qc2 {[%emt 0:01:00]} Bd6 {[%emt 1:20:20]} 13. Qb1 {[%emt 0:00:00]} Qe7 {[%emt 0:00:30]} 14. Qa1 {[%emt 0:01:00]} Rfe8 {[%emt 0:00:00]} 15. Rfe1 Qf8 {[%emt 0:01:00]} 16. Nf1 {[%emt 0:01:00]} Rad8 {[%emt 0:00:00]} 17. Ne3 Qe7 {[%emt 0:01:00]} 18. cxd5 {[%emt 0:00:00]} exd5 {[%emt 0:00:30]} 19. Nd4 Be5 {[%emt 0:00:30]} 20. Ndf5 {[%emt 0:02:00]} Qf8 {[%emt 0:00:00]} 21. Bxe5 {[%emt 0:00:00]} Nxe5 {[%emt 0:00:00]} 22. Qb2 {[%emt 0:00:00]} Nfg4 {[%emt 0:00:00]} 23. Nxg4 {[%emt 0:00:00]} Nxg4 {[%emt 0:00:00]} 24. Nd4 {[%emt 0:00:00]} h5 {[%emt 0:00:00]} 25. Nf3 {[%emt 0:00:00]} (25. b4 $14) 25... Qd6 {[%emt 0:00:00]} 26. b4 {[%emt 0:00:00]} axb4 {[%emt 0:00:00]} 27. axb4 {[%emt 0:00:00]} Ra8 {[%emt 0:00:00]} 28. Ra1 {[%emt 0:00:00]} Bf5 {[%emt 0:00:00]} 29. h3 {[%emt 0:00:00]} Nf6 {[%emt 0:00:00]} 30. Ra5 {[%emt 0:00:00]} Rxa5 {[%emt 0:00:00]} 31. bxa5 {[%emt 0:00:00]} Qc7 {[%emt 0:00:00]} 32. Ra1 {[%emt 0:00:00]} Ra8 {[%emt 0:00:00]} 33. Nd4 {[%emt 0:00:00]} Bc8 {[%emt 0:00:00]} 34. Qc3 {[%emt 0:00:00]} Ra6 {[%emt 0:00:00]} 35. e3 {[%emt 0:00:00]} Nh7 {[%emt 0:00:00]} 36. h4 {[%emt 0:00:00]} (36. Bxd5 $14 Bxh3 37. Bc4) 36... Nf8 $2 {[%emt 0:00:00]} (36... Qe5 $11 {and Black is okay.}) 37. Bxd5 $18 {[%emt 0:00:00]} Qe5 {[%emt 0:00:00]} 38. Bf3 {[%emt 0:00:00]} Ne6 {[%emt 0:00:00]} 39. Ne2 {[%emt 0:00:00]} Qf5 {[%emt 0:00:00]} (39... Qxc3 $16 40. Nxc3 Nc5) 40. Bg2 $18 {[%emt 0:00:00]} g5 {[%emt 0:00:59]} 41. e4 {[%emt 0:00:00]} Qg6 {[%emt 0:00:06]} (41... Qc5 $142) 42. hxg5 $1 $18 {[%emt 0:00:00]} Qxg5 {[%emt 0:00:06]} 43. d4 {[%emt 0:00:00]} h4 {[%emt 0:01:09]} 44. d5 {[%emt 0:00:00]} Nc7 {[%emt 0:00:20]} (44... Nf8 $142 45. gxh4 Qxh4) 45. gxh4 $18 {[%emt 0:00:00]} Qxh4 {[%emt 0:00:04]} 46. Qe5 {[%emt 0:00:00]} Qd8 {[%emt 0:00:31]} 47. Ra3 {[%emt 0:00:00]} cxd5 {[%emt 0:00:16]} 48. exd5 {[%emt 0:00:00]} (48. Nf4 $142 dxe4 49. Bxe4 (49. Rg3+ Kf8 $18)) 48... Rg6 $18 {[%emt 0:01:44]} 49. Rg3 {[%emt 0:00:00]} Nb5 $2 {[%emt 0:02:02]} (49... Ne8 {was necessary.} 50. Rxg6+ fxg6) 50. Rxg6+ $18 {[%emt 0:00:46]} fxg6 {[%emt 0:00:01]} 51. Nf4 {[%emt 0:00:11]} Bf5 $2 {[%emt 0:00:05]} (51... Nd6 {is a better defense.} 52. Nxg6 Kf7) 52. Ne6 $18 {[%emt 0:03:20]} Qe7 {[%emt 0:05:10]} 53. Qb8+ {[%emt 0:01:45]} Kh7 {[%emt 0:02:13]} 54. Qh2+ {[%emt 0:02:02]} Kg8 {[%emt 0:00:01]} 55. Qh6 {[%emt 0:09:26]} Nc7 {[%emt 0:01:39]} 56. Ng5 {[%emt 0:00:00]} (56. d6 $142 Qxe6 57. dxc7 Qe1+ 58. Bf1) 56... Qg7 $2 {[%emt 0:01:11]} (56... Ne8 57. Bf3 Nd6) 57. Qh4 {[%emt 0:00:00]} (57. Qxg7+ $142 Kxg7 58. Ne6+ Bxe6 59. dxe6) 57... Ne8 $18 {[%emt 0:00:17]} 58. Qb4 $2 {[%emt 0:00:00]} (58. Bh3 $18) 58... Qa1+ $1 $11 {[%emt 0:00:09]} 59. Kh2 {[%emt 0:00:00]} Qh8+ $2 {[%emt 0:00:13] [#]} (59... Qe5+ $11 60. f4 Qe3) 60. Kg3 $1 $18 {[%emt 0:00:00]} Qe5+ {[%emt 0:00:05]} 61. f4 $2 {[%emt 0:00:00]} (61. Qf4 $18 Qc3+ 62. Qe3 Qc7+ 63. f4) 61... Qe3+ $11 {[%emt 0:00:02]} 62. Kh2 $2 {[%emt 0:00:00][%mdl 8192]} (62. Nf3 $11 Nf6 63. Qxb7 Nh5+ 64. Kh2 Qxf4+ 65. Kg1) 62... Nf6 $19 {[%emt 0:00:16]} 63. Bf3 {[%emt 0:00:55]} Qf2+ {[%emt 0:02:39]} 64. Kh1 {[%emt 0:00:03] [#]} Qf1+ $2 {[%emt 0:00:04]} ({Better is} 64... Ne4 $1 $19 {[%cal Re4g3] ( -> ...Ng3#)} 65. Bxe4 Qf1+ 66. Kh2 Qxf4+ 67. Kg2 Qxg5+ 68. Kf3 Bg4+ 69. Kf2 Qf4+ 70. Ke1 Bf3 (70... Qe3+ $2 71. Kf1 $19)) 65. Kh2 {[%emt 0:04:02]} 1/2-1/2

[Event "7th Sharjah Challengers 2024"]
[Site "Sharjah"]
[Date "2024.05.22"]
[Round "9.5"]
[White "Mohammad Fahad, Rahman"]
[Black "Mendes Aaron Reeve"]
[Result "0-1"]
[ECO "B15"]
[WhiteElo "2435"]
[BlackElo "2307"]
[Annotator "RC"]
[PlyCount "136"]
[EventDate "2024.05.13"]
[EventType "swiss"]
[EventCountry "UAE"]
[SourceTitle "playchess.com"]
[Source "ChessBase"]
[SourceQuality "1"]
[TimeControl "5400+30"]

1. e4 {[%emt 0:00:13]} c6 {[%emt 0:00:15]} 2. d4 {[%emt 0:00:15]} d5 {[%emt 0:00:10]} 3. Nd2 {[%emt 0:00:19]} dxe4 {[%emt 0:00:08]} 4. Nxe4 {[%emt 0:00:05]} Nf6 {[%emt 0:00:08]} 5. Nxf6+ {[%emt 0:00:33]} exf6 {[%emt 0:00:10]} 6. c3 {[%emt 0:00:48]} Bd6 {[%emt 0:00:21]} 7. Bd3 {[%emt 0:00:19]} O-O {[%emt 0:00:09]} 8. Qc2 {[%emt 0:00:09]} h5 {[%emt 0:01:20]} 9. Ne2 {[%emt 0:02:12]} Re8 {[%emt 0:00:13]} 10. Be3 {[%emt 0:00:20]} Nd7 {[%emt 0:02:01]} 11. O-O-O {[%emt 0:00:57]} Nf8 {[%emt 0:00:06]} 12. c4 {[%emt 0:01:02]} Be6 {[%emt 0:01:53]} 13. Kb1 {[%emt 0:00:22]} Rc8 {[%emt 0:00:49]} 14. a3 {[%emt 0:00:33]} Ng6 {[%emt 0:04:47]} 15. Nc3 {[%emt 0:08:23]} Ne7 {[%emt 0:00:41]} 16. Rhe1 {[%emt 0:00:20]} a6 {[%emt 0:04:01]} 17. Bc1 {[%emt 0:00:37]} Qd7 {[%emt 0:00:24]} 18. Na4 {[%emt 0:11:24]} Rcd8 {[%emt 0:05:46]} 19. Bh7+ {[%emt 0:03:11]} Kh8 {[%emt 0:02:09]} 20. Be4 {[%emt 0:00:09]} b5 {[%emt 0:04:05]} 21. Nc5 {[%emt 0:00:49]} Bxc5 {[%emt 0:00:21]} 22. dxc5 {[%emt 0:00:07]} Qc7 {[%emt 0:00:07]} 23. cxb5 {[%emt 0:03:46]} axb5 {[%emt 0:01:04]} 24. Qe2 {[%emt 0:01:38]} g6 {[%emt 0:06:29]} 25. Qf3 {[%emt 0:00:57]} Kg7 {[%emt 0:03:45]} 26. h3 {[%emt 0:00:34]} Rxd1 {[%emt 0:02:59]} 27. Rxd1 {[%emt 0:00:52]} Bd5 {[%emt 0:00:44]} 28. Bf4 {[%emt 0:01:42]} Qc8 {[%emt 0:00:24]} 29. Bxd5 {[%emt 0:14:01]} Nxd5 {[%emt 0:00:08]} 30. Bd2 {[%emt 0:00:05]} Re5 {[%emt 0:04:23]} 31. Re1 {[%emt 0:02:26]} Qe6 {[%emt 0:00:14]} 32. Rxe5 {[%emt 0:02:45]} fxe5 {[%emt 0:01:49]} 33. Qe4 {[%emt 0:01:17]} f5 {[%emt 0:01:14]} 34. Qh4 {[%emt 0:00:28]} Nf6 {[%emt 0:00:21]} 35. f3 {[%emt 0:03:42]} Qd5 {[%emt 0:01:12]} 36. Bc3 {[%emt 0:00:39]} Kf7 {[%emt 0:11:24]} 37. Qg5 {[%emt 0:10:35]} Qxc5 {[%emt 0:01:36]} 38. g4 {[%emt 0:00:12]} hxg4 {[%emt 0:01:45]} 39. hxg4 {[%emt 0:00:02]} Qg1+ {[%emt 0:01:42]} 40. Ka2 {[%emt 0:00:12]} Qg3 {[%emt 0:06:09]} 41. Qe3 {[%emt 0:07:37]} Nd7 {[%emt 0:03:05]} 42. Qd2 {[%emt 0:02:03]} Ke6 {[%emt 0:00:53]} 43. gxf5+ {[%emt 0:02:53]} gxf5 {[%emt 0:00:10]} 44. Qe3 {[%emt 0:00:11]} Qh3 {[%emt 0:05:39]} 45. Qe2 {[%emt 0:00:25]} Qh4 {[%emt 0:01:29]} 46. Bb4 {[%emt 0:03:23]} Qd4 {[%emt 0:06:18]} 47. Qg2 {[%emt 0:02:56]} Nf6 {[%emt 0:00:11]} 48. Bc3 {[%emt 0:00:40]} Qc4+ {[%emt 0:00:27]} 49. Ka1 {[%emt 0:00:12]} Qd5 {[%emt 0:01:52]} 50. Qg3 {[%emt 0:00:56]} c5 {[%emt 0:01:08]} 51. f4 {[%emt 0:00:54]} b4 {[%emt 0:02:35]} 52. Bxe5 {[%emt 0:03:25]} Ng4 {[%emt 0:01:51]} 53. axb4 {[%emt 0:06:09]} cxb4 {[%emt 0:00:15]} 54. Kb1 {[%emt 0:00:05]} b3 {[%emt 0:04:02]} 55. Kc1 {[%emt 0:00:26]} Nxe5 {[%emt 0:00:15]} 56. fxe5 {[%emt 0:00:03]} Qc4+ {[%emt 0:00:34]} 57. Kd2 {[%emt 0:00:10]} Qd4+ {[%emt 0:00:31]} 58. Kc1 {[%emt 0:00:14]} Qd5 {[%emt 0:00:36]} 59. Qg7 {[%emt 0:01:51]} Qc4+ {[%emt 0:00:27]} 60. Kd2 {[%emt 0:00:03]} Qd4+ {[%emt 0:00:05]} 61. Kc1 {[%emt 0:00:08]} Qe3+ {[%emt 0:00:05]} 62. Kd1 {[%emt 0:00:09]} Qd3+ {[%emt 0:00:03]} 63. Ke1 {[%emt 0:00:12]} Qb1+ {[%emt 0:00:04]} 64. Kf2 {[%emt 0:02:52]} Qxb2+ {[%emt 0:00:06]} 65. Kf3 {[%emt 0:00:03]} Qc3+ {[%emt 0:00:10]} 66. Kg2 {[%emt 0:00:33]} Qd2+ {[%emt 0:00:17]} 67. Kh3 {[%emt 0:00:11]} Qe3+ {[%emt 0:00:07]} 68. Kg2 {[%emt 0:00:17]} Qe2+ {[%emt 0:00:05]} 0-1